[Event "Sautron op 13th"]
[Site "Sautron"]
[Date "2013.11.01"]
[Round "8"]
[White "Burmakin, Vladimir"]
[Black "Haub, Thorsten Michael"]
[Result "1-0"]
[ECO "A01"]
[WhiteElo "2581"]
[BlackElo "2455"]
[Annotator "RR"]
[PlyCount "83"]
[EventDate "2013.10.26"]
[EventType "swiss"]
[EventRounds "9"]
[EventCountry "FRA"]
[SourceTitle "EXT 2014"]
[Source "ChessBase"]
[SourceDate "2013.11.20"]
[SourceVersion "1"]
[SourceVersionDate "2013.11.20"]
[SourceQuality "1"]
[TimeControl "40/5400+30:1800+30"]
[WhiteClock "1:30:00"]
[BlackClock "1:30:00"]

1. b3 {[%emt 0:00:00]} e5 {[%emt 0:00:00]} 2. Bb2 {[%emt 0:00:00]} d6 {[%emt 0:
00:00]} 3. e3 {[%emt 0:00:00]} Nf6 {[%emt 0:00:35]} 4. c4 {[%emt 0:00:48]} c6 {
[%emt 0:00:56]} 5. d4 {[%emt 0:00:38]} Nbd7 {[%emt 0:00:31]} 6. Nf3 {[%emt 0:
01:13]} Qe7 {[%emt 0:04:52]} (6... e4 7. Nfd2 d5 8. f3 exf3 9. Qxf3 Nb6 10. Bd3
Bg4 11. Qf2 Bh5 12. c5 Nbd7 13. O-O Be7 14. b4 Bg6 15. Bxg6 hxg6 16. h3 Nf8 17.
Nc3 Ne6 18. Nf3 O-O 19. a4 Qb8 20. b5 Bd8 21. Ba3 Bc7 22. Rab1 Bg3 23. Qc2 Qd8
24. Ne2 Bc7 25. bxc6 bxc6 26. Rb7 Ne4 27. Nc3 Ng3 28. Rfb1 Re8 29. Qf2 Re7 30.
a5 Nf5 31. a6 Bg3 32. Qd2 Qa5 33. Rxe7 Nxe7 34. Nxd5 Qd8 35. Nxe7+ Qxe7 36. e4
{Nakamura,H (2775)-Topalov,V (2793) Stavanger 2013 1-0}) 7. Be2 $146 {[%emt 0:
01:46]} (7. g3 g6 8. Bg2 Bg7 9. O-O O-O 10. Nc3 Re8 11. h3 Nf8 12. e4 Nh5 13.
d5 c5 14. Ne1 Bh6 15. Nd3 f5 16. exf5 Bxf5 17. Ne4 Nd7 18. Kh2 Bxe4 19. Bxe4
Nhf6 20. Bg2 e4 21. Ne1 Bg7 22. Qc2 h5 23. f4 exf3 24. Bxf3 Ne5 25. Ng2 Nxf3+
26. Rxf3 Qe4 27. Qf2 Ng4+ 28. hxg4 Bxb2 29. Re1 Qd4 30. Qc2 Rxe1 31. Qxg6+ Qg7
32. Qxg7+ Bxg7 33. Nxe1 Re8 34. Nd3 hxg4 35. Rf4 {1/2-1/2 (35) Rusev,K (2545)
-Haub,T (2462) Odense 2013}) 7... g6 {[%emt 0:07:51]} 8. c5 $1 {[%emt 0:16:09]}
exd4 {[%emt 0:08:41]} 9. cxd6 {[%emt 0:00:08]} Qxd6 {[%emt 0:00:05]} 10. exd4 {
[%emt 0:00:06]} Nb6 {[%emt 0:10:24][%csl Gd5]} 11. O-O {[%emt 0:06:09]} Bf5 {
[%emt 0:03:01]} 12. Re1 {[%emt 0:15:31]} O-O-O {[%emt 0:02:28]} 13. Nbd2 {
[%emt 0:00:04]} Nbd5 {[%emt 0:04:15]} 14. Nc4 {[%emt 0:02:17]} Qc7 {[%emt 0:00:
20]} 15. a3 {[%emt 0:00:10]} g5 {[%emt 0:08:05]} 16. b4 {[%emt 0:01:09]} Kb8 {
[%emt 0:05:03]} 17. Nfe5 {[%emt 0:03:16]} Nf4 {[%emt 0:02:32]} 18. Rc1 {
[%emt 0:02:23]} (18. Bf1) 18... N6d5 {[%emt 0:02:58]} (18... Be6 19. Na5 Rd6)
19. Na5 $36 {[%emt 0:18:41][%csl Rc6][%cal Ga5c6,Ge5c6]} Rd6 {[%emt 0:02:48]}
20. Bg4 $1 {[%emt 0:04:30]} Bxg4 {[%emt 0:02:05]} 21. Qxg4 {[%emt 0:00:02]} Bg7
{[%emt 0:01:59]} 22. g3 {[%emt 0:00:37]} f5 {[%emt 0:04:24]} (22... Ne6) 23.
Qxf5 {[%emt 0:03:15]} Rf8 {[%emt 0:00:26]} 24. Nexc6+ $1 {[%emt 0:00:21]} bxc6
{[%emt 0:04:57]} 25. Qxf8+ $1 {[%emt 0:00:04] La pointe!} Bxf8 {[%emt 0:00:51]}
26. Re8+ {[%emt 0:00:04]} Qc8 {[%emt 0:02:07]} 27. Rxc8+ {[%emt 0:00:21]} Kxc8
{[%emt 0:00:06]} 28. gxf4 {[%emt 0:00:14]} Kd7 $2 {[%emt 0:01:59]} (28... Nxf4)
29. fxg5 {[%emt 0:00:25]} Rg6 {[%emt 0:02:00]} 30. h4 {[%emt 0:00:58]} h6 {
[%emt 0:00:27]} 31. Kf1 {[%emt 0:01:18]} hxg5 {[%emt 0:00:40]} 32. hxg5 {
[%emt 0:00:03]} Be7 {[%emt 0:00:45]} 33. Nc4 {[%emt 0:01:39]} Bd6 {[%emt 0:00:
20]} 34. Ne5+ {[%emt 0:01:31]} Bxe5 {[%emt 0:00:09]} 35. dxe5 {[%emt 0:00:21]}
Rxg5 {[%emt 0:00:10]} 36. Rc4 {[%emt 0:01:01]} Rh5 {[%emt 0:00:36]} 37. Kg2 {
[%emt 0:05:37]} Rg5+ {[%emt 0:00:29]} 38. Kf3 {[%emt 0:06:04]} Rg1 {[%emt 0:00:
58]} 39. Rc1 $18 {[%emt 0:00:31]} Rg8 {[%emt 0:00:19]} 40. Bd4 {[%emt 0:00:00]}
Ra8 {[%emt 0:00:00]} 41. Ke4 {[%emt 0:02:30]} Rf8 {[%emt 0:02:25]} 42. e6+ {
[%emt 0:01:39]} 1-0

[Event "Rohde op 12th"]
[Site "Sautron"]
[Date "2012.10.30"]
[Round "5"]
[White "Sergeev, Vladimir"]
[Black "Videnova, Iva"]
[Result "1/2-1/2"]
[ECO "A01"]
[WhiteElo "2475"]
[BlackElo "2318"]
[Annotator "RR"]
[PlyCount "241"]
[EventDate "2012.10.27"]
[EventType "swiss"]
[EventRounds "9"]
[EventCountry "FRA"]
[SourceTitle "EXT 2014"]
[Source "ChessBase"]
[SourceDate "2013.11.20"]
[SourceVersion "1"]
[SourceVersionDate "2013.11.20"]
[SourceQuality "1"]
[TimeControl "40/5400+30:1800+30"]
[WhiteClock "1:30:00"]
[BlackClock "1:30:00"]

1. b3 {[%emt 0:00:00]} e5 {[%emt 0:00:00]} 2. Bb2 {[%emt 0:00:00]} Nc6 {
[%emt 0:00:10][%csl Rb2]} (2... f6 $5) 3. c4 {[%emt 0:00:00]} (3. e3 $142 {
[%cal Gf1b5]} Nf6 4. Bb5 $1 Bd6 (4... d6) 5. Na3 {[%cal Ga3c4]} Na5 $5 6. Nc4
Nxc4 7. Bxc4) 3... g6 {[%emt 0:02:04]} 4. e3 {[%emt 0:00:15]} Bg7 {[%emt 0:00:
52]} 5. Nf3 {[%emt 0:02:23]} d6 {[%emt 0:00:53]} 6. Be2 {[%emt 0:00:59]} (6. d4
e4 7. Nfd2) 6... f5 {[%emt 0:00:36]} 7. d4 {[%emt 0:00:46]} e4 {[%emt 0:02:48]
Retombe sur une française fermée avec couleurs inversées} 8. Nfd2 {[%emt 0:02:
19]} Nf6 {[%emt 0:00:12]} 9. Nc3 {[%emt 0:00:39]} O-O {[%emt 0:03:51]} 10. a3 {
[%emt 0:00:19][%cal Gb3b4,Gb4b5]} (10. O-O) 10... Qe7 $146 {[%emt 0:08:15]} (
10... a5 11. Qc2 {Zegarac,B (2302)-Popovic,D (2435) Subotica TS03 IM 2003 (3)
0-1}) 11. g3 {[%emt 0:08:07][%csl Rf3,Rg2]} (11. Qc2 $5 {[%csl Rc7,Re7][%cal
Gc3d5]}) 11... b6 {[%emt 0:01:53]} (11... a5 12. O-O) 12. b4 {[%emt 0:05:52]}
Bb7 {[%emt 0:00:08]} 13. Nb3 {[%emt 0:00:40]} Nd8 {[%emt 0:15:37]} 14. d5 $1 {
[%emt 0:05:01][%csl Rb7] Les Noirs ne peuvent plus jouer Ne5} c6 {[%emt 0:06:
05]} 15. dxc6 {[%emt 0:01:48]} Nxc6 {[%emt 0:00:29]} 16. Nb5 {[%emt 0:02:27]} (
16. Nd4 {[%cal Gd4b5]} Ne5) 16... Rfd8 {[%emt 0:01:15]} 17. N5d4 {[%emt 0:05:
14]} Ne5 $132 {[%emt 0:05:05][%csl Rc4,Gd3,Rf3]} 18. O-O {[%emt 0:00:11]} Nfg4
{[%emt 0:04:51][%csl Rh2][%cal Ge7g5,Gg5h5]} (18... Nfd7 $5 {[%cal Gg7b2,Ge5f3]
}) 19. h3 {[%emt 0:06:08]} Nh6 {[%emt 0:06:00]} 20. Rc1 {[%emt 0:00:43]} Nhf7 {
[%emt 0:00:32]} 21. c5 $6 {[%emt 0:02:15][%cal Gd8d1]} dxc5 {[%emt 0:00:25]}
22. bxc5 {[%emt 0:00:07]} Ng5 $36 {[%emt 0:00:48]} (22... Bd5 23. cxb6 axb6 $15
{[%csl Ra3]}) 23. c6 {[%emt 0:03:09]} Bc8 {[%emt 0:13:21]} 24. h4 {[%emt 0:10:
28]} Ngf3+ {[%emt 0:00:13]} 25. Kg2 {[%emt 0:00:06]} Bf6 {[%emt 0:08:51]} (
25... g5 $143 {[%csl Rf5]} 26. hxg5 Qxg5) 26. Qc2 {[%emt 0:11:59]} Bxh4 $5 {
[%emt 0:02:47]} 27. Bxf3 {[%emt 0:03:36]} (27. c7) 27... exf3+ {[%emt 0:00:33]}
28. Nxf3 {[%emt 0:00:47]} Nxf3 {[%emt 0:04:03]} 29. Kxf3 {[%emt 0:00:14]} Ba6 {
[%emt 0:01:50]} 30. Rfd1 {[%emt 0:01:01]} (30. gxh4 Qxh4 31. Kg2 Bxf1+ (31...
Bd3)) 30... Bf6 {[%emt 0:00:18]} 31. Bxf6 {[%emt 0:02:04]} Qxf6 {[%emt 0:00:04]
} 32. Nd4 $16 {[%emt 0:03:41][%csl Gc6][%cal Gf3g2]} Qe5 {[%emt 0:01:25]} 33.
Qb3+ {[%emt 0:02:31]} (33. Kg2) 33... Qd5+ {[%emt 0:02:42]} 34. Qxd5+ {[%emt 0:
00:33]} Rxd5 {[%emt 0:00:05]} 35. a4 {[%emt 0:06:28]} (35. Ne6 {[%csl Gc6]
[%cal Gc6c8]} Rxd1 36. Rxd1 Rc8 37. Rd6 (37. c7 Kf7 38. Ng5+) 37... Bc4 38. Nd4
) 35... Rc8 {[%emt 0:00:57]} 36. Rc3 {[%emt 0:06:11]} Kf7 {[%emt 0:01:54]} 37.
Rh1 {[%emt 0:00:29]} h5 {[%emt 0:00:33]} 38. Rb1 {[%emt 0:01:18]} Rc5 $1 {
[%emt 0:02:59]} 39. Rxc5 {[%emt 0:01:13]} (39. Rbc1) 39... bxc5 {[%emt 0:00:06]
} 40. Rb7+ $1 {[%emt 0:00:00]} Kf6 {[%emt 0:00:00]} 41. Rxa7 {[%emt 0:00:54]}
Bd3 {[%emt 0:01:18]} (41... cxd4 42. Rxa6 d3 43. c7+ Ke5 (43... Ke7 44. Rxg6)
44. Rc6 g5 $132) 42. Nb5 {[%emt 0:01:43]} Rxc6 {[%emt 0:04:28]} 43. Nc3 {
[%emt 0:00:05]} Ke5 {[%emt 0:01:22]} (43... g5) 44. Kg2 {[%emt 0:04:01]} Rb6 {
[%emt 0:01:52]} 45. Re7+ {[%emt 0:05:52]} (45. a5 Rb3) 45... Kd6 {[%emt 0:01:
41]} 46. Rg7 {[%emt 0:00:15]} Rb3 $1 {[%emt 0:01:31][%csl Rc3]} 47. Rxg6+ {
[%emt 0:00:20]} Kd7 {[%emt 0:00:23]} 48. Nb5 $8 {[%emt 0:05:11]} (48. Nd1 $2
Bc2 {[%csl Rd1]}) 48... Bxb5 {[%emt 0:00:09]} 49. axb5 {[%emt 0:00:04]} Rxb5 {
[%emt 0:00:09][%csl Gc5] La structure de P est un peu meilleure pour les
Blancs mais les pièces Blanches sont mal placées ^pour lutter contre le P passé
} 50. Rg5 {[%emt 0:01:28]} c4 $36 {[%emt 0:00:46][%cal Gb5c5]} 51. Rxh5 {
[%emt 0:00:06]} c3 {[%emt 0:01:23]} 52. Rh1 {[%emt 0:00:02]} Kd6 {[%emt 0:00:
33]} 53. Rc1 {[%emt 0:04:04]} Rc5 {[%emt 0:00:07]} 54. Rd1+ {[%emt 0:07:46]}
Kc6 {[%emt 0:04:45]} 55. Kf3 {[%emt 0:02:57]} Kb5 {[%emt 0:00:11]} 56. e4 $1 {
[%emt 0:01:29][%csl Gg3][%cal Gg3g8]} c2 {[%emt 0:02:23]} 57. Rc1 {[%emt 0:00:
01]} Kb4 {[%emt 0:00:14][%csl Rc1][%cal Gb4b3,Gb3b2] La Rc1 est condamnée mais
le K Noir sera trés loin de la majorité adverse} 58. exf5 {[%emt 0:00:35]}
Rxf5+ {[%emt 0:00:09]} 59. Ke3 {[%emt 0:00:04]} Kc3 {[%emt 0:00:37]} 60. f4 {
[%emt 0:00:04][%cal Gg3g4]} Rf8 {[%emt 0:00:52]} 61. g4 {[%emt 0:00:16]} Re8+ {
[%emt 0:00:06]} 62. Kf3 {[%emt 0:00:01]} Kd2 {[%emt 0:00:19]} 63. Rxc2+ {
[%emt 0:01:13]} Kxc2 {[%emt 0:00:07]} 64. f5 $6 {[%emt 0:00:35][%csl Rc2] Il
ne restait plus qu'une dizaine de minutes au GMI en phase KO mais jouer f5
quasiment а tempo sans analyser g5 est assez étonnant} (64. g5 $142 {Le K Noir
est trop éloigné de l'aile-roi pour garder des chances de gain} Kd3 65. g6 $1
Kd4 66. Kg4 Kd5 67. Kf5 {[%csl Ge6][%cal Gg6g7]}) 64... Kd3 {[%emt 0:00:19]}
65. f6 {[%emt 0:00:28]} Kd4 {[%emt 0:00:26]} 66. Kf4 {[%emt 0:00:02]} Re1 {
[%emt 0:00:42]} 67. Kf5 {[%emt 0:01:31]} Kd5 {[%emt 0:00:41]} 68. g5 {[%emt 0:
00:23]} Rf1+ $2 {[%emt 0:00:16] Il restait pourtant 20 mns а la bulgare dans
cette position.} (68... Rg1 $142 69. f7 Rf1+ 70. Kg6 Ke6 $19) 69. Kg6 {[%emt 0:
00:01]} Ke6 $1 {[%emt 0:00:10] La progression du P "f" est stoppée mais en
ceontrepartie, il n'est pas facile d'améliorer la position des Noirs} 70. Kg7
$8 {[%emt 0:00:04]} Rf2 {[%emt 0:00:16]} 71. g6 $1 {[%emt 0:03:15]} Rxf6 {
[%emt 0:00:15]} 72. Kh7 {[%emt 0:00:06]} Rf1 {[%emt 0:00:26]} 73. g7 {[%emt 0:
00:03]} Rh1+ {[%emt 0:05:43]} 74. Kg8 {[%emt 0:00:07]} Kf6 {[%emt 0:03:01]} 75.
Kf8 {[%emt 0:00:05]} Ra1 {[%emt 0:00:37]} 76. g8=N+ $8 {[%emt 0:00:02]} Ke6 {
[%emt 0:00:17]} 77. Kg7 $1 $11 {[%emt 0:00:05] Les rares cas de gain dans ce
genre de finale interviennent lorsque le K est а la bande ou dans le coin.}
Rg1+ {[%emt 0:00:55]} 78. Kf8 {[%emt 0:00:05]} Rg6 {[%emt 0:00:41]} 79. Ne7 {
[%emt 0:00:04]} Rf6+ {[%emt 0:00:15]} 80. Ke8 {[%emt 0:00:02]} Rf7 {[%emt 0:01:
50]} 81. Ng6 {[%emt 0:00:42]} Ra7 {[%emt 0:02:45]} 82. Nf8+ {[%emt 0:00:06]}
Kd6 {[%emt 0:00:08]} 83. Ng6 {[%emt 0:00:10]} Rg7 {[%emt 0:00:21]} 84. Nf8 {
[%emt 0:00:11]} Re7+ {[%emt 0:00:46]} 85. Kd8 {[%emt 0:00:01]} Re1 {[%emt 0:00:
33]} 86. Nd7 {[%emt 0:01:22]} Ra1 {[%emt 0:01:42]} 87. Nb8 {[%emt 0:00:13]} Rh1
{[%emt 0:00:28]} 88. Kc8 {[%emt 0:00:07]} Rh7 {[%emt 0:00:54]} 89. Na6 {
[%emt 0:00:10]} Ra7 {[%emt 0:00:39]} 90. Nb8 {[%emt 0:00:02]} Rh7 {[%emt 0:00:
44]} 91. Na6 {[%emt 0:00:05]} Rh8+ {[%emt 0:00:20]} 92. Kb7 {[%emt 0:00:02]}
Kd5 {[%emt 0:00:33]} 93. Nc7+ {[%emt 0:00:07]} Kc5 {[%emt 0:00:10]} 94. Na6+ {
[%emt 0:00:06]} Kd6 {[%emt 0:00:11]} 95. Nb8 {[%emt 0:00:20]} Rh2 {[%emt 0:00:
25]} 96. Kc8 {[%emt 0:00:12]} Rb2 {[%emt 0:00:50]} 97. Na6 {[%emt 0:00:05]} Rb3
{[%emt 0:00:35]} 98. Nb8 {[%emt 0:00:21]} Rb6 {[%emt 0:00:19]} 99. Nd7 {
[%emt 0:00:35]} Ra6 {[%emt 0:00:48]} 100. Kb7 {[%emt 0:00:19]} Rc6 {[%emt 0:00:
52]} 101. Nb8 {[%emt 0:00:50]} Rc7+ {[%emt 0:00:35]} 102. Kb6 {[%emt 0:00:17]}
Rc2 {[%emt 0:00:16]} 103. Na6 {[%emt 0:00:53]} Rb2+ {[%emt 0:00:13]} 104. Ka5 {
[%emt 0:00:13]} Rb1 {[%emt 0:00:22]} 105. Nb4 {[%emt 0:00:10]} Kc5 {[%emt 0:00:
13]} 106. Na6+ {[%emt 0:00:19]} Kc4 {[%emt 0:00:13]} 107. Nc7 {[%emt 0:00:22]}
Kd4 {[%emt 0:00:40]} 108. Nb5+ {[%emt 0:00:33]} Kc5 {[%emt 0:00:17]} 109. Na3 {
[%emt 0:00:03]} Rb4 {[%emt 0:00:26]} 110. Nc2 {[%emt 0:00:03]} Rh4 {[%emt 0:01:
29]} 111. Na3 {[%emt 0:00:10]} Rg4 {[%emt 0:01:51]} 112. Nb5 {[%emt 0:01:28]}
Rg7 {[%emt 0:01:05]} 113. Ka6 {[%emt 0:00:18]} Rg8 {[%emt 0:00:37]} 114. Na7 {
[%emt 0:00:39]} Rb8 {[%emt 0:00:23]} 115. Ka5 {[%emt 0:00:08]} Rb6 {[%emt 0:00:
46]} 116. Nc8 {[%emt 0:00:07]} Rb7 {[%emt 0:00:34]} 117. Ka6 {[%emt 0:00:05]}
Rb8 {[%emt 0:01:57]} 118. Na7 {[%emt 0:00:08]} Rb6+ {[%emt 0:01:00]} 119. Ka5 {
[%emt 0:00:02]} Rb7 {[%emt 0:01:10]} 120. Ka6 {[%emt 0:00:14]} Rc7 {[%emt 0:00:
08]} 121. Nb5 {[%emt 0:00:07]} 1/2-1/2

[Event "Rohde op 09th"]
[Site "Sautron"]
[Date "2009.10.30"]
[Round "8"]
[White "Meijers, Viesturs"]
[Black "Berbatov, Kiprian"]
[Result "1/2-1/2"]
[ECO "A01"]
[WhiteElo "2471"]
[BlackElo "2457"]
[Annotator "RR"]
[PlyCount "99"]
[EventDate "2009.10.24"]
[EventType "swiss"]
[EventRounds "9"]
[EventCountry "FRA"]
[SourceTitle "EXT 2010"]
[Source "ChessBase"]
[SourceDate "2010.11.25"]
[SourceVersion "1"]
[SourceVersionDate "2010.11.25"]
[SourceQuality "1"]
[TimeControl "6000"]

1. b3 e5 2. Bb2 Nc6 3. c4 (3. e3 Nf6 4. Bb5 $14 {[%cal Gb5c6,Gg1f3]}) 3... Nf6
4. e3 d5 5. cxd5 Nxd5 6. a3 Bd6 7. b4 O-O ({RR} 7... Qe7 8. b5 Nd8 9. Nf3 O-O
10. Be2 c6 11. a4 e4 12. Nd4 c5 13. Nc2 Qg5 14. Kf1 f5 15. h4 Qe7 16. d4 exd3
17. Qxd3 Be6 18. Nd2 Nf7 19. Nc4 Bc7 20. g3 Rad8 21. Qa3 Nd6 22. Nxd6 {Meijers,
V (2493)-Eichner,S (2326)/Leipzig 2009/Mega2009 Update 18/1-0 (43)}) 8. b5 (8.
Qc2) (8. d3) (8. Nc3) 8... Nce7 (8... Na5 {[%csl Gc4]}) 9. Nf3 Ng6 (9... Bg4
10. h3 Bxf3 11. Qxf3 f5 12. Bc4 $14 {[%cal Gc4g8]}) 10. h4 $5 {[%csl Rg6][%cal
Gh4h5]} Re8 {[%cal Gg6f8]} (10... e4 $142 {[%cal Gg6e5]} 11. h5 (11. Ng5 Qe7
$36) 11... Ngf4 $5 12. exf4 Bg4 $40) 11. h5 $36 Nf8 12. h6 g5 {[%cal Gf8g6]} (
12... g6) 13. g3 (13. Qb3 Be6 14. Bxe5) 13... Ng6 14. Qc2 Qe7 15. Nc3 Nxc3 16.
Qxc3 {[%csl Gc3][%cal Gc3g7]} b6 {[%csl Rf3][%cal Gc8b7,Gb7f3]} (16... Bg4 $142
$11) 17. Bg2 Bb7 18. O-O g4 19. Nh2 Bxg2 20. Kxg2 Qd7 21. f3 gxf3+ 22. Rxf3 {
[%cal Ga1f1]} Bf8 23. Raf1 $14 {[%csl Rf7]} Re7 24. a4 $1 {[%csl Re7][%cal
Gb2a3,Ga3e7]} Bxh6 25. Ba3 Re6 26. Rxf7 Qd5+ 27. R7f3 (27. Kg1 Nf4 $5 {[%cal
Gg8f7]}) 27... c5 28. bxc6 $2 {réactive la Re6 qui était mal placée} (28. Ng4
$142 {[%cal Gg4h6]}) 28... Rxc6 29. Qb2 Rac8 30. Bb4 (30. Ng4) 30... Rc2 31.
Qb1 a5 32. Ng4 Bg7 33. e4 $6 Qxe4 34. Rc1 {Il doit y avoir un problème de
sauvegarde de la partie avec le plateau DGT} Qxb4 35. Rxc2 Qxb1 36. Rxc8+ Bf8
37. Nh6+ Kg7 38. Nf5+ Kh8 39. Nh4 Nxh4+ 40. gxh4 Qg6+ 41. Kf2 Qd6 42. Rcxf8+
Kg7 43. R8f7+ Kg6 44. d3 h6 45. R7f5 Qd4+ 46. Kg3 Qg1+ 47. Kh3 Qh1+ 48. Kg3
Qe1+ 49. Kh3 Qh1+ 50. Kg3 1/2-1/2